fUSD/lending_fUSD_20260630
["ID","MTS","AMOUNT","RATE_DAILY","PERIOD"]
[426714444,1782758416000,-2115.65,0.00037237,120]
[426714443,1782758416000,-2189.18,0.00037237,120]
[426714442,1782758416000,-2115.65,0.00037237,120]
[426714439,1782758416000,-2189.18,0.00037237,120]
[426714440,1782758416000,-2115.65,0.00037237,120]
[426714438,1782758416000,-2115.65,0.00037237,120]
[426714446,1782758416000,-2115.65,0.00037237,120]
[426714435,1782758416000,-2189.18,0.00037237,120]
[426714437,1782758416000,-2189.18,0.00037237,120]
[426714436,1782758416000,-2115.65,0.00037237,120]
[426714431,1782758416000,-2189.18,0.00037237,120]
[426714432,1782758416000,-2115.65,0.00037237,120]
[426714433,1782758416000,-2189.18,0.00037237,120]
[426714430,1782758416000,-2115.65,0.00037237,120]
[426714429,1782758416000,-2189.18,0.00037237,120]
[426714434,1782758416000,-2115.65,0.00037237,120]
[426714448,1782758416000,-2115.65,0.00037237,120]
[426714450,1782758416000,-2115.65,0.00037237,120]
[426714447,1782758416000,-2189.18,0.00037237,120]
[426714465,1782758416000,-500.0,0.00037237,120]
[426714462,1782758416000,-500.0,0.00037237,120]
[426714463,1782758416000,-639.70711203,0.00037237,120]
[426714461,1782758416000,-500.0,0.00037237,120]
[426714464,1782758416000,-500.0,0.00037237,120]
[426714458,1782758416000,-500.0,0.00037237,120]
[426714460,1782758416000,-500.0,0.00037237,120]
[426714459,1782758416000,-500.0,0.00037237,120]
[426714467,1782758416000,-443.96550642,0.00037237,120]
[426714455,1782758416000,-2115.65,0.00037237,120]
[426714457,1782758416000,-500.0,0.00037237,120]
[426714466,1782758416000,-500.0,0.00037237,120]
[426714452,1782758416000,-2115.65,0.00037237,120]
[426714449,1782758416000,-2189.18,0.00037237,120]
[426714453,1782758416000,-2115.65,0.00037237,120]
[426714454,1782758416000,-2115.65,0.00037237,120]
[426714456,1782758416000,-2115.70106972,0.00037237,120]
[426714451,1782758416000,-2189.31492342,0.00037237,120]
[426714482,1782758417000,-495.18,0.00037237,120]
[426714481,1782758417000,-189.34480529,0.00037237,120]
[426714480,1782758417000,-159.26091747,0.00037237,120]
[426714479,1782758417000,-169.00329226,0.00037237,120]
[426714478,1782758417000,-260.97713422,0.00037237,60]
[426714477,1782758417000,-500.0,0.00037237,60]
[426714476,1782758417000,-500.0,0.00037237,60]
[426714475,1782758417000,-500.0,0.00037237,60]
[426714473,1782758417000,-500.0,0.00037237,60]
[426714470,1782758417000,-549.00608135,0.00037237,120]
[426714472,1782758417000,-500.0,0.00037237,60]
[426714469,1782758417000,-156.96111301,0.00037237,120]
[426714468,1782758417000,-514.98388845,0.00037237,120]
[426714484,1782758417000,-151.0,0.00037237,120]
[426714474,1782758417000,-500.0,0.00037237,60]
[426714471,1782758417000,-609.39764415,0.00037237,120]
[426714483,1782758417000,-173.98713015,0.00037237,120]
[426714486,1782758417000,-500.0,0.00037237,120]
[426714487,1782758417000,-500.0,0.00037237,120]
[426714499,1782758417000,-500.0,0.00037237,120]
[426714500,1782758417000,-364.17062714,0.00037237,120]
[426714496,1782758417000,-500.0,0.00037237,120]
[426714497,1782758417000,-500.0,0.00037237,120]
[426714495,1782758417000,-500.0,0.00037237,120]
[426714493,1782758417000,-500.0,0.00037237,120]
[426714498,1782758417000,-500.0,0.00037237,120]
[426714491,1782758417000,-500.0,0.00037237,120]
[426714494,1782758417000,-500.0,0.00037237,120]
[426714490,1782758417000,-500.0,0.00037237,120]
[426714489,1782758417000,-500.0,0.00037237,120]
[426714488,1782758417000,-500.0,0.00037237,120]
[426714485,1782758417000,-500.0,0.00037237,120]
[426714492,1782758417000,-500.0,0.00037237,120]
[426714509,1782758418000,-1278.4,0.00037237,120]
[426714516,1782758418000,-1278.4,0.00037237,120]
[426714513,1782758418000,-1278.4,0.00037237,120]
[426714515,1782758418000,-1278.4,0.00037237,120]
[426714514,1782758418000,-1278.4,0.00037237,120]
[426714512,1782758418000,-1278.4,0.00037237,120]
[426714510,1782758418000,-1278.4,0.00037237,120]
[426714504,1782758418000,-1278.4,0.00037237,120]
[426714508,1782758418000,-1278.4,0.00037237,120]
[426714505,1782758418000,-1278.4,0.00037237,120]
[426714507,1782758418000,-1278.4,0.00037237,120]
[426714506,1782758418000,-1278.4,0.00037237,120]
[426714503,1782758418000,-1278.4,0.00037237,120]
[426714502,1782758418000,-600.0,0.00037237,120]
[426714501,1782758418000,-245.58800158,0.00037237,30]
[426714511,1782758418000,-1278.4,0.00037237,120]
[426714518,1782758418000,-1278.4,0.00037237,120]
[426714519,1782758418000,-1278.4,0.00037237,120]
[426714521,1782758418000,-1278.4,0.00037237,120]
[426714536,1782758418000,-2507.76,0.00037237,120]
[426714537,1782758418000,-2507.76,0.00037237,120]
[426714533,1782758418000,-2507.76,0.00037237,120]
[426714534,1782758418000,-2507.76,0.00037237,120]
[426714532,1782758418000,-2507.76,0.00037237,120]
[426714535,1782758418000,-2507.76,0.00037237,120]
[426714530,1782758418000,-500.0,0.00037237,60]
[426714528,1782758418000,-500.0,0.00037237,60]
[426714517,1782758418000,-1278.4,0.00037237,120]
[426714529,1782758418000,-558.83205881,0.00037237,60]
[426714525,1782758418000,-1278.4,0.00037237,120]
[426714526,1782758418000,-1278.4988306,0.00037237,120]
[426714524,1782758418000,-1278.4,0.00037237,120]
[426714527,1782758418000,-500.0,0.00037237,60]
[426714522,1782758418000,-1278.4,0.00037237,120]
[426714523,1782758418000,-1278.4,0.00037237,120]
[426714520,1782758418000,-1278.4,0.00037237,120]
[426714531,1782758418000,-221.38777915,0.00037237,60]
[426714548,1782758419000,-2507.76,0.00037237,120]
[426714547,1782758419000,-2507.76,0.00037237,120]
[426714557,1782758419000,-159.08271991,0.00037237,120]
[426714553,1782758419000,-2507.76,0.00037237,120]
[426714552,1782758419000,-2507.76,0.00037237,120]
[426714549,1782758419000,-2507.76,0.00037237,120]
[426714551,1782758419000,-2507.76,0.00037237,120]
[426714550,1782758419000,-2507.76,0.00037237,120]
[426714544,1782758419000,-2507.76,0.00037237,120]
[426714546,1782758419000,-2507.76,0.00037237,120]
[426714545,1782758419000,-2507.76,0.00037237,120]
[426714541,1782758419000,-2507.76,0.00037237,120]
[426714539,1782758419000,-168.62052538,0.00037237,120]
[426714542,1782758419000,-2507.76,0.00037237,120]
[426714540,1782758419000,-2507.76,0.00037237,120]
[426714554,1782758419000,-2507.76,0.00037237,120]
[426714543,1782758419000,-2507.76,0.00037237,120]
[426714538,1782758419000,-2507.76,0.00037237,120]
[426714556,1782758419000,-2507.86294863,0.00037237,120]
[426714561,1782758419000,-2536.89,0.00037237,120]
[426714555,1782758419000,-2507.76,0.00037237,120]
[426714574,1782758419000,-500.0,0.00037237,120]
[426714573,1782758419000,-2536.89,0.00037237,120]
[426714570,1782758419000,-500.0,0.00037237,120]
[426714572,1782758419000,-500.0,0.00037237,120]
[426714569,1782758419000,-2536.89,0.00037237,120]
[426714567,1782758419000,-2536.89,0.00037237,120]
[426714566,1782758419000,-500.0,0.00037237,120]
[426714571,1782758419000,-2536.89,0.00037237,120]
[426714568,1782758419000,-500.0,0.00037237,120]
[426714564,1782758419000,-2536.89,0.00037237,120]
[426714563,1782758419000,-2536.89,0.00037237,120]
[426714562,1782758419000,-2536.89,0.00037237,120]
[426714558,1782758419000,-439.999999,0.00037237,120]
[426714560,1782758419000,-2536.89,0.00037237,120]
[426714559,1782758419000,-500.0,0.00037237,120]
[426714565,1782758419000,-2536.89,0.00037237,120]
[426714586,1782758420000,-500.0,0.00037237,120]
[426714590,1782758420000,-500.0,0.00037237,120]
[426714589,1782758420000,-2536.89,0.00037237,120]
[426714588,1782758420000,-500.0,0.00037237,120]
[426714584,1782758420000,-500.0,0.00037237,120]
[426714587,1782758420000,-2536.89,0.00037237,120]
[426714585,1782758420000,-2536.89,0.00037237,120]
[426714594,1782758420000,-500.0,0.00037237,120]
[426714582,1782758420000,-500.0,0.00037237,120]
[426714581,1782758420000,-2536.89,0.00037237,120]
[426714577,1782758420000,-2536.89,0.00037237,120]
[426714578,1782758420000,-500.0,0.00037237,120]
[426714579,1782758420000,-2536.89,0.00037237,120]
[426714576,1782758420000,-500.0,0.00037237,120]
[426714575,1782758420000,-2536.89,0.00037237,120]
[426714583,1782758420000,-2536.89,0.00037237,120]
[426714592,1782758420000,-500.0,0.00037237,120]
[426714580,1782758420000,-500.0,0.00037237,120]
[426714591,1782758420000,-500.0,0.00037237,120]
[426714609,1782758420000,-500.0,0.00037237,120]
[426714607,1782758420000,-152.23554427,0.00037237,120]
[426714608,1782758420000,-500.0,0.00037237,120]
[426714606,1782758420000,-561.14493661,0.00037237,120]
[426714604,1782758420000,-2537.1292954,0.00037237,120]
[426714605,1782758420000,-500.0,0.00037237,120]
[426714610,1782758420000,-500.0,0.00037237,120]
[426714603,1782758420000,-500.0,0.00037237,120]
[426714593,1782758420000,-2536.89,0.00037237,120]
[426714599,1782758420000,-500.0,0.00037237,120]
[426714602,1782758420000,-2536.89,0.00037237,120]
[426714601,1782758420000,-500.0,0.00037237,120]
[426714596,1782758420000,-500.0,0.00037237,120]
[426714598,1782758420000,-500.0,0.00037237,120]
[426714595,1782758420000,-2536.89,0.00037237,120]
[426714597,1782758420000,-2536.89,0.00037237,120]
[426714600,1782758420000,-2536.89,0.00037237,120]
[426714627,1782758421000,-500.0,0.00037237,120]
[426714625,1782758421000,-500.0,0.00037237,120]
[426714624,1782758421000,-172.36910629,0.00037237,120]
[426714623,1782758421000,-500.0,0.00037237,120]
[426714622,1782758421000,-500.0,0.00037237,120]
[426714621,1782758421000,-500.0,0.00037237,120]
[426714617,1782758421000,-500.0,0.00037237,120]
[426714614,1782758421000,-500.0,0.00037237,120]
[426714618,1782758421000,-500.0,0.00037237,120]
[426714619,1782758421000,-500.0,0.00037237,120]
[426714616,1782758421000,-500.0,0.00037237,120]
[426714613,1782758421000,-150.30320194,0.00037237,120]
[426714611,1782758421000,-500.0,0.00037237,120]
[426714612,1782758421000,-639.24909571,0.00037237,120]
[426714626,1782758421000,-500.0,0.00037237,120]
[426714620,1782758421000,-500.0,0.00037237,120]
[426714628,1782758421000,-500.0,0.00037237,120]
[426714615,1782758421000,-500.0,0.00037237,120]
[426714631,1782758421000,-500.0,0.00037237,120]
[426714645,1782758421000,-500.0,0.00037237,120]
[426714647,1782758421000,-500.0,0.00037237,120]
[426714643,1782758421000,-397.97806665,0.00037237,60]
[426714644,1782758421000,-624.1570088,0.00037237,120]
[426714642,1782758421000,-288.88001105,0.00037237,120]
[426714641,1782758421000,-500.0,0.00037237,60]
[426714640,1782758421000,-500.0,0.00037237,60]
[426714639,1782758421000,-179.87018236,0.00037237,120]
[426714646,1782758421000,-500.0,0.00037237,120]
[426714636,1782758421000,-500.0,0.00037237,120]
[426714638,1782758421000,-166.21096627,0.00037237,120]
[426714630,1782758421000,-500.0,0.00037237,120]
[426714633,1782758421000,-500.0,0.00037237,120]
[426714629,1782758421000,-500.0,0.00037237,120]
[426714635,1782758421000,-525.90621702,0.00037237,120]
[426714632,1782758421000,-500.0,0.00037237,120]
[426714637,1782758421000,-505.80673676,0.00037237,120]
[426714634,1782758421000,-500.0,0.00037237,120]
[426714660,1782758422000,-841.81,0.00037237,120]
[426714661,1782758422000,-841.81,0.00037237,120]
[426714658,1782758422000,-177.76764412,0.00037237,120]
[426714659,1782758422000,-841.81,0.00037237,120]
[426714657,1782758422000,-291.06468346,0.00037237,120]
[426714656,1782758422000,-500.0,0.00037237,120]
[426714655,1782758422000,-372.16307846,0.00037237,120]
[426714652,1782758422000,-500.0,0.00037237,120]
[426714653,1782758422000,-500.0,0.00037237,120]
[426714650,1782758422000,-500.0,0.00037237,120]
[426714649,1782758422000,-500.0,0.00037237,120]
[426714648,1782758422000,-500.0,0.00037237,120]
[426714663,1782758422000,-841.81,0.00037237,120]
[426714654,1782758422000,-601.24076167,0.00037237,120]
[426714651,1782758422000,-500.0,0.00037237,120]
[426714664,1782758422000,-841.81,0.00037237,120]
[426714666,1782758422000,-841.81,0.00037237,120]
[426714662,1782758422000,-841.81,0.00037237,120]
[426714678,1782758422000,-841.81,0.00037237,120]
[426714679,1782758422000,-841.81,0.00037237,120]
[426714677,1782758422000,-841.81,0.00037237,120]
[426714675,1782758422000,-841.81,0.00037237,120]
[426714674,1782758422000,-841.81,0.00037237,120]
[426714673,1782758422000,-841.81,0.00037237,120]
[426714676,1782758422000,-841.81,0.00037237,120]
[426714671,1782758422000,-841.81,0.00037237,120]
[426714669,1782758422000,-841.81,0.00037237,120]
[426714670,1782758422000,-841.81,0.00037237,120]
[426714668,1782758422000,-841.81,0.00037237,120]
[426714667,1782758422000,-841.81,0.00037237,120]
[426714665,1782758422000,-841.81,0.00037237,120]
[426714672,1782758422000,-841.81,0.00037237,120]
[426714688,1782758423000,-500.0,0.00037237,120]
[426714693,1782758423000,-500.0,0.00037237,120]
[426714692,1782758423000,-500.0,0.00037237,120]
[426714691,1782758423000,-500.0,0.00037237,120]
[426714689,1782758423000,-500.0,0.00037237,120]
[426714690,1782758423000,-500.0,0.00037237,120]
[426714687,1782758423000,-500.0,0.00037237,120]
[426714694,1782758423000,-500.0,0.00037237,120]
[426714686,1782758423000,-500.0,0.00037237,120]
[426714684,1782758423000,-500.0,0.00037237,120]
[426714682,1782758423000,-841.85504268,0.00037237,120]
[426714683,1782758423000,-500.0,0.00037237,120]
[426714681,1782758423000,-841.81,0.00037237,120]
[426714680,1782758423000,-841.81,0.00037237,120]
[426714685,1782758423000,-500.0,0.00037237,120]
[426714695,1782758423000,-516.34036504,0.00037237,120]
[426714711,1782758423000,-200.19064482,0.00037237,120]
[426714698,1782758423000,-554.96922367,0.00037237,120]
[426714696,1782758423000,-500.0,0.00037237,120]
[426714713,1782758423000,-150.3042984,0.00037237,120]
[426714712,1782758423000,-294.6745196,0.00037237,120]
[426714710,1782758423000,-629.06017975,0.00037237,120]
[426714709,1782758423000,-589.6858815,0.00037237,120]
[426714706,1782758423000,-500.0,0.00037237,120]
[426714707,1782758423000,-151.58454254,0.00037237,120]
[426714708,1782758423000,-500.0,0.00037237,120]
[426714704,1782758423000,-487.0,0.00037237,120]
[426714702,1782758423000,-487.0,0.00037237,120]
[426714703,1782758423000,-487.0,0.00037237,120]
[426714701,1782758423000,-487.0,0.00037237,120]
[426714699,1782758423000,-500.0,0.00037237,120]
[426714700,1782758423000,-425.15299673,0.00037237,120]
[426714697,1782758423000,-500.0,0.00037237,120]
[426714705,1782758423000,-499.56,0.00037237,120]
[426714725,1782758424000,-293.80910393,0.00037237,30]
[426714729,1782758424000,-155.75516075,0.00037237,120]
[426714728,1782758424000,-1046.44535562,0.00037237,30]
[426714727,1782758424000,-383.4348355,0.00037237,30]
[426714726,1782758424000,-277.73701022,0.00037237,30]
[426714724,1782758424000,-415.0,0.00037237,120]
[426714722,1782758424000,-1468.0,0.00037237,60]
[426714714,1782758424000,-25000.0,0.00037237,120]
[426714720,1782758424000,-184.65,0.00037237,120]
[426714721,1782758424000,-23390.0,0.00037237,120]
[426714719,1782758424000,-440.7,0.00037237,120]
[426714717,1782758424000,-833.21,0.00037237,120]
[426714718,1782758424000,-621.26310586,0.00037237,30]
[426714715,1782758424000,-2000.0,0.00037237,120]
[426714716,1782758424000,-1628.78,0.00037237,120]
[426714723,1782758424000,-239.00582684,0.00037237,120]
[426714732,1782758424000,-664.79564878,0.00037237,120]
[426714730,1782758424000,-162.54457507,0.00037237,30]
[426714733,1782758424000,-1012.70775687,0.00037237,30]
[426714731,1782758424000,-786.37362714,0.00037237,30]
[426714749,1782758424000,-164.15298266,0.00037237,60]
[426714748,1782758424000,-421.57687334,0.00037237,30]
[426714746,1782758424000,-167.92109641,0.00037237,30]
[426714747,1782758424000,-341.1159619,0.00037237,120]
[426714745,1782758424000,-169.98748161,0.00037237,120]
[426714742,1782758424000,-12186.56582895,0.00037237,60]
[426714743,1782758424000,-471.82411787,0.00037237,30]
[426714744,1782758424000,-179.54779138,0.00037237,120]
[426714739,1782758424000,-684.36103893,0.00037237,30]
[426714740,1782758424000,-1930.34523423,0.00037237,30]
[426714738,1782758424000,-152.7926585,0.00037237,120]
[426714735,1782758424000,-900.21821462,0.00037237,120]
[426714737,1782758424000,-456.32405284,0.00037237,120]
[426714736,1782758424000,-161.31825244,0.00037237,30]
[426714734,1782758424000,-798.52630553,0.00037237,30]
[426714741,1782758424000,-2939.999999,0.00037237,120]
[426714759,1782758425000,-163.65508627,0.00037237,30]
[426714764,1782758425000,-612.89292733,0.00037237,30]
[426714766,1782758425000,-171.32321591,0.00037237,120]
[426714762,1782758425000,-1086.1304883,0.00037237,30]
[426714763,1782758425000,-175.57195246,0.00037237,30]
[426714760,1782758425000,-2440.8852333,0.00037237,30]
[426714761,1782758425000,-2318.0878751,0.00037237,30]
[426714757,1782758425000,-293.94232273,0.00037237,120]
[426714750,1782758425000,-695.03157213,0.00037237,30]
[426714755,1782758425000,-3109.05711937,0.00037237,120]
[426714753,1782758425000,-751.5958598,0.00037237,30]
[426714756,1782758425000,-649.62890218,0.00037237,30]
[426714754,1782758425000,-222.88842029,0.00037237,30]
[426714752,1782758425000,-505.65460566,0.00037237,30]
[426714751,1782758425000,-1354.67814767,0.00037237,120]
[426714767,1782758425000,-789.23814115,0.00037237,120]
[426714758,1782758425000,-152.57688637,0.00037237,30]
[426714765,1782758425000,-359.28432367,0.00037237,30]
[426714785,1782758425000,-152.20420058,0.00037237,120]
[426714769,1782758425000,-163.05551576,0.00037237,120]
[426714784,1782758425000,-152.20420058,0.00037237,120]
[426714786,1782758425000,-152.20420058,0.00037237,120]
[426714783,1782758425000,-152.20420058,0.00037237,120]
[426714781,1782758425000,-152.20420058,0.00037237,120]
[426714780,1782758425000,-200.09540538,0.00037237,60]
[426714782,1782758425000,-152.20420058,0.00037237,120]
[426714777,1782758425000,-200.09540538,0.00037237,60]
[426714778,1782758425000,-162.2633031,0.00037237,120]
[426714768,1782758425000,-172.38043198,0.00037237,60]
[426714776,1782758425000,-152.20420058,0.00037237,120]
[426714775,1782758425000,-200.09540538,0.00037237,60]
[426714773,1782758425000,-194.3875135,0.00037237,120]
[426714772,1782758425000,-393.28425366,0.00037237,30]
[426714774,1782758425000,-189.8816517,0.00037237,30]
[426714770,1782758425000,-224.00464591,0.00037237,30]
[426714771,1782758425000,-365.18511078,0.00037237,30]
[426714779,1782758425000,-152.20420058,0.00037237,120]
[426714802,1782758426000,-170.04,0.00037237,60]
[426714800,1782758426000,-500.0,0.00037237,120]
[426714798,1782758426000,-500.0,0.00037237,120]
[426714799,1782758426000,-500.0,0.00037237,120]
[426714796,1782758426000,-500.0,0.00037237,120]
[426714795,1782758426000,-500.0,0.00037237,120]
[426714797,1782758426000,-500.0,0.00037237,120]
[426714790,1782758426000,-405.89,0.00037237,120]
[426714792,1782758426000,-500.0,0.00037237,120]
[426714793,1782758426000,-500.0,0.00037237,120]
[426714791,1782758426000,-405.89,0.00037237,120]
[426714789,1782758426000,-405.89,0.00037237,120]
[426714788,1782758426000,-405.9,0.00037237,120]
[426714787,1782758426000,-18000.0,0.00037237,120]
[426714804,1782758426000,-215.45454545,0.00037237,120]
[426714794,1782758426000,-500.0,0.00037237,120]
[426714801,1782758426000,-542.84806608,0.00037237,120]
[426714803,1782758426000,-182.72727272,0.00037237,120]
[426714806,1782758426000,-280.9090909,0.00037237,120]
[426714822,1782758426000,-949.36,0.00037237,120]
[426714821,1782758426000,-949.36,0.00037237,120]
[426714820,1782758426000,-949.36,0.00037237,120]
[426714819,1782758426000,-949.36,0.00037237,120]
[426714818,1782758426000,-949.36,0.00037237,120]
[426714816,1782758426000,-949.36,0.00037237,120]
[426714815,1782758426000,-949.36,0.00037237,120]
[426714814,1782758426000,-949.36,0.00037237,120]
[426714817,1782758426000,-949.36,0.00037237,120]
[426714811,1782758426000,-2000.0,0.00037237,120]
[426714812,1782758426000,-670.03,0.00037237,120]
[426714809,1782758426000,-1100.0,0.00037237,120]
[426714810,1782758426000,-177.24164142,0.00037237,120]
[426714805,1782758426000,-248.18181818,0.00037237,120]
[426714808,1782758426000,-885599.0,0.00037237,60]
[426714807,1782758426000,-313.63636363,0.00037237,120]
[426714813,1782758426000,-949.36,0.00037237,120]
[426714833,1782758427000,-949.36,0.00037237,120]
[426714839,1782758427000,-1296.61,0.00037237,60]
[426714836,1782758427000,-949.46453182,0.00037237,120]
[426714837,1782758427000,-1296.61,0.00037237,60]
[426714835,1782758427000,-949.36,0.00037237,120]
[426714834,1782758427000,-949.36,0.00037237,120]
[426714831,1782758427000,-949.36,0.00037237,120]
[426714824,1782758427000,-949.36,0.00037237,120]
[426714830,1782758427000,-949.36,0.00037237,120]
[426714829,1782758427000,-949.36,0.00037237,120]
[426714827,1782758427000,-949.36,0.00037237,120]
[426714828,1782758427000,-949.36,0.00037237,120]
[426714825,1782758427000,-949.36,0.00037237,120]
[426714823,1782758427000,-949.36,0.00037237,120]
[426714826,1782758427000,-949.36,0.00037237,120]
[426714838,1782758427000,-1296.61,0.00037237,60]
[426714832,1782758427000,-949.36,0.00037237,120]
[426714841,1782758427000,-1296.61,0.00037237,60]
[426714845,1782758427000,-406.78416306,0.00037237,120]
[426714842,1782758427000,-314.751894,0.00037237,120]
[426714859,1782758427000,-891.667382,0.00037237,30]
[426714840,1782758427000,-1296.61,0.00037237,60]
[426714857,1782758427000,-891.667382,0.00037237,30]
[426714858,1782758427000,-304.194107,0.00037237,30]
[426714856,1782758427000,-304.194107,0.00037237,30]
[426714855,1782758427000,-891.667382,0.00037237,30]
[426714853,1782758427000,-304.194107,0.00037237,30]
[426714854,1782758427000,-891.667382,0.00037237,30]
[426714860,1782758427000,-304.194107,0.00037237,30]
[426714850,1782758427000,-891.667382,0.00037237,30]
[426714852,1782758427000,-891.667382,0.00037237,30]
[426714849,1782758427000,-304.194107,0.00037237,30]
[426714848,1782758427000,-891.667382,0.00037237,30]
[426714847,1782758427000,-304.194107,0.00037237,30]
[426714846,1782758427000,-304.194107,0.00037237,30]
[426714844,1782758427000,-500.0,0.00037237,120]
[426714843,1782758427000,-207.374975,0.00037237,120]
[426714851,1782758427000,-304.194107,0.00037237,30]
[426714872,1782758428000,-304.194107,0.00037237,30]
[426714873,1782758428000,-891.667382,0.00037237,30]
[426714874,1782758428000,-304.194107,0.00037237,30]
[426714871,1782758428000,-891.667382,0.00037237,30]
[426714870,1782758428000,-304.194107,0.00037237,30]
[426714869,1782758428000,-891.667382,0.00037237,30]
[426714864,1782758428000,-304.194107,0.00037237,30]
[426714866,1782758428000,-304.194107,0.00037237,30]
[426714865,1782758428000,-891.667382,0.00037237,30]
[426714867,1782758428000,-891.667382,0.00037237,30]
[426714863,1782758428000,-891.667382,0.00037237,30]
[426714861,1782758428000,-891.667382,0.00037237,30]
[426714862,1782758428000,-304.194107,0.00037237,30]
[426714868,1782758428000,-304.194107,0.00037237,30]
[426714875,1782758428000,-891.667382,0.00037237,30]
[426714877,1782758428000,-891.667382,0.00037237,30]
[426714878,1782758428000,-304.194107,0.00037237,30]
[426714876,1782758428000,-304.194107,0.00037237,30]
[426714890,1782758428000,-1216.822479,0.00037237,30]
[426714891,1782758428000,-622.027836,0.00037237,30]
[426714889,1782758428000,-622.027836,0.00037237,30]
[426714886,1782758428000,-622.027836,0.00037237,30]
[426714888,1782758428000,-1216.822479,0.00037237,30]
[426714887,1782758428000,-622.027836,0.00037237,30]
[426714884,1782758428000,-891.667383,0.00037237,30]
[426714883,1782758428000,-891.667382,0.00037237,30]
[426714882,1782758428000,-304.194107,0.00037237,30]
[426714881,1782758428000,-891.667382,0.00037237,30]
[426714880,1782758428000,-304.194107,0.00037237,30]
[426714879,1782758428000,-891.667382,0.00037237,30]
[426714885,1782758428000,-304.194115,0.00037237,30]
[426714902,1782758429000,-622.027836,0.00037237,30]
[426714905,1782758429000,-1216.822479,0.00037237,30]
[426714904,1782758429000,-622.027836,0.00037237,30]
[426714903,1782758429000,-1216.822479,0.00037237,30]
[426714900,1782758429000,-622.027836,0.00037237,30]
[426714901,1782758429000,-1216.822479,0.00037237,30]
[426714899,1782758429000,-1216.822479,0.00037237,30]
[426714892,1782758429000,-1216.822479,0.00037237,30]
[426714897,1782758429000,-1216.822479,0.00037237,30]
[426714896,1782758429000,-622.027836,0.00037237,30]
[426714893,1782758429000,-622.027836,0.00037237,30]
[426714895,1782758429000,-1216.822479,0.00037237,30]
[426714894,1782758429000,-622.027836,0.00037237,30]
[426714906,1782758429000,-622.027836,0.00037237,30]
[426714898,1782758429000,-622.027836,0.00037237,30]
[426714908,1782758429000,-622.027836,0.00037237,30]
[426714909,1782758429000,-1216.822479,0.00037237,30]
[426714910,1782758429000,-622.027836,0.00037237,30]
[426714924,1782758429000,-622.027836,0.00037237,30]
[426714923,1782758429000,-1216.822479,0.00037237,30]
[426714921,1782758429000,-388.521933,0.00037237,30]
[426714922,1782758429000,-151.0,0.00037237,30]
[426714920,1782758429000,-622.027836,0.00037237,30]
[426714918,1782758429000,-388.521933,0.00037237,30]
[426714917,1782758429000,-151.0,0.00037237,30]
[426714907,1782758429000,-1216.822479,0.00037237,30]
[426714916,1782758429000,-622.027836,0.00037237,30]
[426714913,1782758429000,-622.027836,0.00037237,30]
[426714915,1782758429000,-1216.822479,0.00037237,30]
[426714914,1782758429000,-151.0,0.00037237,30]
[426714912,1782758429000,-1216.822479,0.00037237,30]
[426714911,1782758429000,-151.0,0.00037237,30]
[426714925,1782758429000,-388.521933,0.00037237,30]
[426714919,1782758429000,-1216.822479,0.00037237,30]
[426714938,1782758430000,-388.521933,0.00037237,30]
[426714940,1782758430000,-1216.82247,0.00037237,30]
[426714939,1782758430000,-162.077572,0.00037237,30]
[426714934,1782758430000,-388.521933,0.00037237,30]
[426714936,1782758430000,-388.521933,0.00037237,30]